bitfinex/quotes_BTCUSD_20220201
["timestamp","ask_amount","ask_price","bid_price","bid_amount"]
[1643728433355,0.03871451,38458.0,38450.0,0.05]
[1643728433554,0.27856479,38456.0,38446.0,0.42]
[1643728433756,0.065034,38453.0,38446.0,0.54569216]
[1643728433956,0.09952568,38453.0,38446.0,0.54569216]
[1643728434258,0.08763841,38448.0,38446.0,0.42]
[1643728434691,0.08763841,38448.0,38439.0,0.20004]
[1643728434896,0.115044,38450.0,38436.0,1.1999]
[1643728434897,0.065055,38445.0,38436.0,1.1999]
[1643728435294,0.04819692,38444.0,38436.0,1.1999]
[1643728435491,0.0404879,38441.0,38437.0,0.22226328]
[1643728435692,0.25892606,38438.0,38436.0,1.1999]
[1643728436491,0.29800878,38438.0,38436.0,1.1999]
[1643728437098,0.55,38437.0,38436.0,1.1999]
[1643728437395,0.449963,38437.0,38427.0,0.00100434]
[1643728437594,0.195242,38434.0,38427.0,0.00100434]
[1643728437896,0.15551843,38430.0,38423.0,0.28468057]
[1643728438095,0.11230276,38429.0,38421.0,0.14605942]
[1643728438351,0.04619202,38428.0,38421.0,0.14605942]
[1643728439349,0.04619202,38428.0,38422.0,0.20823276]
[1643728439549,0.065078,38429.0,38422.0,0.20823276]
[1643728439752,0.065078,38429.0,38422.0,0.62823276]
[1643728440148,0.065078,38429.0,38422.0,0.67823276]
[1643728440349,0.065078,38429.0,38419.0,1.67640884]
[1643728440350,0.065078,38429.0,38419.0,0.36256834]
[1643728440587,0.065078,38429.0,38410.0,0.130144]
[1643728440588,0.065078,38429.0,38378.0,0.75158029]
[1643728440589,0.52788977,38415.0,38378.0,0.75158029]
[1643728440759,1.4,38413.0,38380.0,0.81006579]
[1643728440956,1.4,38413.0,38379.0,0.10006]
[1643728440957,0.24549621,38403.0,38379.0,0.10266]
[1643728441152,4.870839,38402.0,38369.0,0.09996]
[1643728441357,0.21056439,38382.0,38370.0,0.26062]
[1643728441555,0.75,38370.0,38363.0,0.0009]
[1643728441852,0.75,38370.0,38351.0,0.04935176]
[1643728441853,0.065196,38366.0,38353.0,0.10013]
[1643728442119,0.065196,38366.0,38346.0,0.002]
[1643728442120,0.33,38362.0,38346.0,0.002]
[1643728442318,0.33,38362.0,38349.0,0.28910751]
[1643728442319,4.90688559,38361.0,38349.0,0.28910751]
[1643728442520,0.09505414,38356.0,38351.0,0.009207]
[1643728442818,0.09505414,38356.0,38338.0,0.001113]
[1643728442819,0.065216,38349.0,38338.0,0.001113]
[1643728443117,0.04889,38348.0,38323.0,0.2001]
[1643728443317,0.04889,38348.0,38330.0,0.0011]
[1643728443616,0.55,38344.0,38334.0,0.25384026]
[1643728443816,0.06522601,38342.0,38333.0,0.14033399]
[1643728444014,0.06523,38340.0,38333.0,0.14033399]
[1643728444517,0.5,38337.0,38333.0,0.14033399]
[1643728444719,0.06523,38340.0,38335.0,0.08032515]
[1643728444720,0.10034218,38340.0,38335.0,0.08032515]
[1643728445020,0.1,38350.0,38335.0,0.08032515]
[1643728445021,0.1,38350.0,38345.0,0.13092733]
[1643728445216,0.11521087,38353.0,38336.0,0.00120319]
[1643728445217,0.130414,38347.0,38336.0,0.00120319]
[1643728445615,0.2887697,38350.0,38336.0,0.00120319]
[1643728445844,0.03396868,38355.0,38336.0,0.00723523]
[1643728446147,0.01,38389.0,38336.0,0.00723523]
[1643728446148,0.2235727,38368.0,38344.0,0.13965329]
[1643728446345,0.05,38384.0,38345.0,0.02606]
[1643728446549,0.05,38384.0,38345.0,0.01341476]
[1643728446550,0.065172,38375.0,38345.0,0.01341476]
[1643728446845,0.05,38371.0,38355.0,0.26248722]
[1643728447044,0.13462435,38365.0,38356.0,0.14877139]
[1643728447245,0.04174302,38369.0,38356.0,0.14877139]
[1643728447549,0.23535333,38368.0,38356.0,0.14877139]
[1643728447745,0.23535333,38368.0,38359.0,0.00120247]
[1643728447746,0.03602221,38367.0,38359.0,0.00120247]
[1643728448046,0.15049,38366.0,38359.0,0.00120247]
[1643728448245,0.04809753,38364.0,38359.0,0.00120247]
[1643728448445,0.25122,38365.0,38359.0,0.00120247]
[1643728448644,0.26169,38364.0,38355.0,0.53612693]
[1643728448846,0.26169,38364.0,38360.0,0.00060122]
[1643728448847,0.30021956,38364.0,38360.0,0.00060122]
[1643728449044,0.15073,38362.0,38360.0,0.00060122]
[1643728449247,0.26169,38361.0,38360.0,0.00060122]
[1643728449493,0.55821412,38361.0,38360.0,0.00060122]
[1643728449692,0.16169,38361.0,38360.0,0.1265319]
[1643728449888,0.16169,38361.0,38360.0,1.51028667]
[1643728450092,0.03343002,38371.0,38360.0,0.21028667]
[1643728450692,0.03343002,38371.0,38359.0,0.00060124]
[1643728450693,0.25700272,38371.0,38359.0,0.00060124]
[1643728450894,0.05,38367.0,38359.0,0.00060124]
[1643728451092,0.05,38367.0,38350.0,0.14364389]
[1643728451093,0.39595253,38366.0,38350.0,0.14364389]
[1643728451292,0.04615172,38365.0,38363.0,0.14794788]
[1643728451492,0.39115,38371.0,38363.0,0.14794788]
[1643728451693,0.39115,38371.0,38369.0,0.12916202]
[1643728451892,0.39115,38371.0,38369.0,0.2153784]
[1643728451893,0.00491588,38371.0,38369.0,0.2153784]
[1643728452091,0.065169,38373.0,38369.0,0.2153784]
[1643728452296,0.2235727,38381.0,38369.0,0.2153784]
[1643728452297,0.04627051,38388.0,38387.0,0.11692788]
[1643728452499,0.36218,38388.0,38387.0,0.11692788]
[1643728452699,0.51291,38388.0,38387.0,0.11692788]
[1643728452895,0.51291,38388.0,38387.0,0.16072788]
[1643728453094,0.01,38389.0,38388.0,1.35]
[1643728453351,0.11049,38399.0,38388.0,0.1438]
[1643728453554,0.26169,38398.0,38388.0,0.1938]
[1643728453752,0.26169,38398.0,38389.0,0.1]
[1643728453952,0.26169,38398.0,38393.0,0.27319071]
[1643728454154,0.26169,38398.0,38388.0,0.0938]
[1643728454552,0.01853964,38394.0,38388.0,0.0938]
[1643728454753,0.26169,38398.0,38388.0,0.0938]
[1643728454754,0.26169,38398.0,38393.0,0.7199]
[1643728454953,0.10049,38395.0,38393.0,0.45821]
[1643728455154,0.10049,38395.0,38393.0,0.8077125]
[1643728455357,0.10049,38395.0,38393.0,0.55201]
[1643728456154,0.10049,38395.0,38393.0,1.90201]
[1643728456155,0.12841677,38394.0,38393.0,1.90201]
[1643728456355,0.01,38399.0,38393.0,0.0438]
[1643728456558,0.170079,38403.0,38394.0,1.4]
[1643728456559,0.03982,38403.0,38394.0,1.4]
[1643728456760,0.27300304,38412.0,38395.0,0.85]
[1643728457013,0.259773,38413.0,38401.0,0.1]
[1643728457014,0.26169,38411.0,38401.0,0.1]
[1643728457203,0.26169,38411.0,38406.0,0.07818429]
[1643728457406,0.4,38418.0,38406.0,0.07818429]
[1643728457407,0.05145066,38430.0,38407.0,0.0438]
[1643728457606,0.05145066,38430.0,38408.0,1.09348285]
[1643728457607,0.065082,38424.0,38408.0,1.09348285]
[1643728457805,0.10049,38424.0,38409.0,0.1438]
[1643728458021,0.0218171,38412.0,38409.0,0.1438]
[1643728458205,0.27300304,38423.0,38409.0,0.1438]
[1643728458408,0.10049,38424.0,38409.0,0.1438]
[1643728458409,0.10040907,38424.0,38419.0,0.43080327]
[1643728458612,0.10040907,38424.0,38419.0,0.14393491]
[1643728458613,0.08853128,38423.0,38419.0,0.14393491]
[1643728459210,0.00580209,38438.0,38420.0,0.25931711]
[1643728459411,0.2,38423.0,38420.0,0.30311711]
[1643728459607,0.2,38423.0,38420.0,0.39941532]
[1643728459808,0.2,38423.0,38421.0,0.29778844]
[1643728460009,0.2,38423.0,38422.0,0.0438]
[1643728460216,0.29634804,38423.0,38422.0,0.0438]
[1643728460410,0.29634804,38423.0,38411.0,0.0718171]
[1643728460614,0.29634804,38423.0,38412.0,0.30206091]
[1643728460849,0.34634804,38423.0,38415.0,0.26372409]
[1643728461047,0.21445557,38423.0,38422.0,0.13930711]
[1643728461850,0.21445557,38423.0,38421.0,0.00060389]
[1643728462056,0.21445557,38423.0,38411.0,0.0218171]
[1643728462057,0.349963,38422.0,38411.0,0.0218171]
[1643728462252,0.349963,38422.0,38421.0,0.00120779]
[1643728462253,0.05,38422.0,38421.0,0.00120779]
[1643728462450,0.46506456,38422.0,38421.0,0.00120779]
[1643728462649,0.04215132,38421.0,38411.0,0.0218171]
[1643728462848,0.51506456,38422.0,38417.0,0.11224342]
[1643728462849,0.04040428,38420.0,38417.0,0.11224342]
[1643728463052,0.04902219,38419.0,38417.0,0.11224342]
[1643728463258,0.05,38419.0,38417.0,0.40781353]
[1643728463551,0.11810753,38423.0,38417.0,0.60146353]
[1643728463951,0.11810753,38423.0,38418.0,0.26029]
[1643728464151,0.03539733,38422.0,38418.0,0.78695993]
[1643728464351,0.03539733,38422.0,38418.0,0.52666993]
[1643728464796,0.03539733,38422.0,38418.0,0.20518161]
[1643728464995,0.03539733,38422.0,38417.0,0.45781353]
[1643728465195,0.03539733,38422.0,38418.0,0.14984]
[1643728465196,0.06509,38422.0,38418.0,0.14984]
[1643728465395,0.03426103,38420.0,38418.0,0.14984]
[1643728465596,0.06509,38422.0,38418.0,0.14984]
[1643728465796,0.06509,38422.0,38418.0,0.15044242]
[1643728466598,0.06509,38422.0,38418.0,0.41700837]
[1643728466794,0.06509,38422.0,38418.0,0.41640595]
[1643728466994,0.06509,38422.0,38418.0,0.41760778]
[1643728467594,0.06509,38422.0,38418.0,0.41620378]
[1643728468097,0.06509,38422.0,38418.0,0.00120183]
[1643728468945,0.10128968,38423.0,38418.0,0.00120183]
[1643728469147,0.10128968,38423.0,38409.0,0.5669055]
[1643728469345,0.10128968,38423.0,38418.0,0.00120183]
[1643728469548,0.06509,38422.0,38418.0,0.13936192]
[1643728469947,0.10128968,38423.0,38418.0,0.13936192]
[1643728470349,0.15128968,38423.0,38418.0,0.13816009]
[1643728470547,0.15128968,38423.0,38419.0,0.00120181]
[1643728470953,0.09484349,38420.0,38419.0,0.00120181]
[1643728471149,0.10128968,38423.0,38419.0,0.00120181]
[1643728471350,0.15128968,38423.0,38419.0,0.00120181]
[1643728471553,0.15128968,38423.0,38418.0,0.13816009]
[1643728471748,0.15128968,38423.0,38419.0,0.25412111]
[1643728471749,0.10128968,38423.0,38419.0,0.25412111]
[1643728471995,0.10128968,38423.0,38419.0,0.26258708]
[1643728472193,0.10128968,38423.0,38419.0,0.00120179]
[1643728472794,0.10128968,38423.0,38418.0,0.13816009]
[1643728472994,0.15128968,38423.0,38419.0,0.00120179]
[1643728473599,0.08418274,38421.0,38419.0,0.00120179]
[1643728473795,0.13418274,38421.0,38419.0,0.00120179]
[1643728473996,0.13418274,38421.0,38418.0,0.13816009]
[1643728474195,0.13418274,38421.0,38418.0,0.13936192]
[1643728474997,0.245259,38426.0,38420.0,1.4]
[1643728474998,0.065088,38426.0,38420.0,1.4]
[1643728475201,0.01,38439.0,38421.0,0.26565032]
[1643728475401,0.0014514,38428.0,38421.0,0.41565032]
[1643728475599,0.0014514,38428.0,38422.0,1.382]
[1643728475878,0.0014514,38428.0,38424.0,1.382]
[1643728476076,0.0014514,38428.0,38426.0,0.23412214]
[1643728476280,0.0014514,38428.0,38427.0,0.05]
[1643728476477,0.13277361,38436.0,38427.0,0.05]
[1643728476679,0.00145152,38429.0,38427.0,0.96]
[1643728477478,0.04872925,38431.0,38427.0,1.20608879]
[1643728477680,0.00580521,38435.0,38429.0,0.15450915]
[1643728477681,0.130141,38435.0,38429.0,0.15450915]
[1643728477879,0.00131634,38430.0,38429.0,0.15450915]
[1643728478281,0.68817214,38454.0,38429.0,0.15450915]
[1643728478478,2.73000557,38464.0,38429.0,0.15450915]
[1643728478479,0.41986457,38459.0,38430.0,0.2594931]
[1643728478687,0.41986457,38459.0,38431.0,0.0438]
[1643728478688,0.15864683,38458.0,38431.0,0.0438]
[1643728478888,0.15864683,38458.0,38446.0,0.05]
[1643728479083,0.065035,38457.0,38447.0,0.2594931]
[1643728479278,0.16787393,38457.0,38446.0,0.05]
[1643728480300,0.10344487,38449.0,38446.0,0.05]
[1643728480700,0.10344487,38449.0,38441.0,0.02074392]
[1643728480903,0.05,38447.0,38441.0,0.02074392]
[1643728481099,0.349963,38446.0,38441.0,0.02074392]
[1643728481300,0.13782682,38445.0,38441.0,0.02074392]
[1643728481504,0.40087196,38442.0,38441.0,0.02074392]
[1643728481700,0.50083496,38442.0,38441.0,0.02074392]
[1643728482100,0.55083496,38442.0,38441.0,0.02074392]
[1643728482300,0.50083496,38442.0,38441.0,0.02074392]
[1643728483648,0.55083496,38442.0,38441.0,0.02074392]
[1643728483848,0.50083496,38442.0,38441.0,0.02074392]
[1643728484748,0.05,38442.0,38441.0,0.02074392]
[1643728484947,0.05,38442.0,38436.0,0.293006]
[1643728484948,0.05,38442.0,38437.0,0.25672756]
[1643728485147,0.00146048,38443.0,38436.0,0.25097751]
[1643728485747,0.12937983,38443.0,38436.0,0.25097751]
[1643728485948,0.05,38442.0,38436.0,0.25097751]
[1643728486147,0.115054,38442.0,38436.0,0.26903477]
[1643728486352,0.065054,38442.0,38437.0,0.4]
[1643728486550,0.065054,38442.0,38436.0,0.30097751]
[1643728486752,0.065054,38442.0,38437.0,0.1]
[1643728487596,0.065054,38442.0,38436.0,0.05]
[1643728487799,0.065054,38442.0,38429.0,0.2537024]
[1643728487998,0.065054,38442.0,38429.0,0.4037024]
[1643728487999,0.065064,38440.0,38429.0,0.4037024]
[1643728488197,0.115054,38442.0,38430.0,0.1]
[1643728488396,0.115054,38442.0,38431.0,0.2537024]
[1643728488397,0.04027796,38441.0,38431.0,0.2537024]
[1643728488599,0.03431912,38440.0,38431.0,0.05]
[1643728488798,0.0356883,38439.0,38435.0,0.01969724]
[1643728488999,0.04784216,38438.0,38435.0,0.28157092]
[1643728489300,0.115054,38442.0,38435.0,0.33157092]
[1643728489301,0.04714289,38437.0,38435.0,0.33157092]
[1643728489499,0.04906086,38441.0,38436.0,0.23826285]
[1643728489997,0.03613425,38439.0,38436.0,0.23826285]
[1643728490199,0.04337047,38438.0,38436.0,0.23826285]
[1643728490398,0.04151762,38437.0,38436.0,0.23826285]
[1643728491351,0.115054,38442.0,38435.0,0.05124721]
[1643728491550,0.115054,38442.0,38435.0,0.00124721]
[1643728491752,0.065059,38440.0,38435.0,0.00124721]
[1643728491954,0.04808228,38440.0,38431.0,0.05]
[1643728492150,0.115054,38442.0,38432.0,0.23366817]
[1643728492350,0.115054,38442.0,38436.0,0.00124718]
[1643728492651,0.09931898,38438.0,38436.0,0.00124718]
[1643728492851,0.05,38439.0,38436.0,0.00124718]
[1643728493351,0.130116,38441.0,38432.0,0.06939128]
[1643728493551,0.065057,38441.0,38436.0,0.00096743]
[1643728493851,0.13134221,38440.0,38436.0,0.00096743]
[1643728494054,0.06474404,38441.0,38436.0,0.00096743]
[1643728494503,0.06474404,38441.0,38433.0,0.23744738]
[1643728494695,0.06474404,38441.0,38436.0,0.00096741]
[1643728495196,0.12980304,38441.0,38436.0,0.00096741]
[1643728495596,0.12980304,38441.0,38431.0,0.51695846]
[1643728495797,0.10484329,38439.0,38436.0,0.00096741]
[1643728496198,0.15484329,38439.0,38436.0,0.00096741]
[1643728496797,0.15484329,38439.0,38431.0,0.52841472]
[1643728497002,0.15484329,38439.0,38436.0,0.00103037]
[1643728497199,0.05,38439.0,38436.0,0.00103037]
[1643728497598,0.12980304,38441.0,38436.0,0.00103037]
[1643728497599,0.05,38440.0,38436.0,0.00103037]
[1643728497798,0.17980304,38441.0,38436.0,0.00103037]
[1643728497999,0.17980304,38441.0,38431.0,0.56084597]
[1643728498247,0.17980304,38441.0,38436.0,0.00103035]
[1643728499247,0.17980304,38441.0,38431.0,0.57980107]
[1643728499448,0.09961903,38437.0,38436.0,0.00103035]
[1643728499847,0.14961903,38437.0,38436.0,0.00103035]
[1643728500046,0.05,38437.0,38436.0,0.00103035]
[1643728500246,0.05,38440.0,38436.0,0.00103035]
[1643728500448,0.05,38440.0,38432.0,0.26546689]
[1643728500647,0.17980304,38441.0,38435.0,0.00101624]
[1643728501248,0.09252055,38440.0,38435.0,0.00101624]
[1643728501447,0.17980304,38441.0,38435.0,0.00101624]
[1643728501650,0.17980304,38441.0,38432.0,0.24452633]
[1643728501848,0.17980304,38441.0,38436.0,0.00101621]
[1643728502299,0.17980304,38441.0,38436.0,0.23512756]
[1643728502497,0.17980304,38441.0,38436.0,0.23371471]
[1643728502695,0.10054916,38440.0,38436.0,0.00101621]
[1643728502894,0.10054916,38440.0,38435.0,0.25925049]
[1643728502895,0.10054916,38440.0,38432.0,0.26108243]
[1643728503097,0.10054916,38440.0,38421.0,2.23830544]
[1643728503098,0.23068016,38440.0,38436.0,0.00101619]
[1643728503300,0.397863,38439.0,38436.0,0.00101619]
[1643728503500,0.397863,38439.0,38436.0,0.00201619]
[1643728503501,0.25284356,38438.0,38436.0,0.00201619]
[1643728503696,1.497863,38437.0,38436.0,0.00201619]
[1643728503897,1.497863,38437.0,38419.0,1.1011]
[1643728503898,0.24904615,38436.0,38419.0,1.1011]
[1643728504099,0.12983799,38420.0,38419.0,1.1011]
[1643728504397,0.05,38420.0,38419.0,1.0011]
[1643728504599,0.21275646,38422.0,38414.0,0.0011]
[1643728504600,0.8,38421.0,38414.0,0.0011]
[1643728504805,0.397863,38420.0,38414.0,0.0011]
[1643728504998,0.397863,38420.0,38411.0,0.00622544]
[1643728504999,0.17811,38419.0,38411.0,0.00622544]
[1643728505203,0.17811,38419.0,38401.0,0.01]
[1643728505204,0.399963,38418.0,38401.0,0.01]
[1643728505399,0.07749237,38402.0,38401.0,0.01]
[1643728505597,0.12749237,38402.0,38401.0,0.01]
[1643728505841,0.12749237,38402.0,38401.0,0.00066141]
[1643728506044,0.12749237,38402.0,38392.0,0.002]
[1643728506241,0.12749237,38402.0,38396.0,0.02105178]
[1643728506443,0.12749237,38402.0,38396.0,0.25769665]
[1643728506643,0.05,38402.0,38396.0,0.23664487]
[1643728506942,0.1,38405.0,38396.0,0.23664487]
[1643728507742,0.1,38405.0,38389.0,0.32756333]
[1643728507944,0.36983031,38405.0,38399.0,0.00124416]
[1643728508142,0.1,38405.0,38399.0,0.00124416]
[1643728508642,0.349963,38404.0,38399.0,0.00124416]
[1643728508842,0.1,38405.0,38399.0,0.00124416]
[1643728508843,0.05,38405.0,38399.0,0.00124416]
[1643728509043,0.07714865,38399.0,38388.0,0.32756333]
[1643728509243,0.05,38398.0,38394.0,0.00497726]
[1643728509710,0.05,38398.0,38394.0,0.2290163]
[1643728510112,0.14152598,38399.0,38394.0,0.27403904]
[1643728510310,0.14152598,38399.0,38394.0,0.27528335]
[1643728510511,0.14152598,38399.0,38394.0,0.28155944]
[1643728510712,0.05,38398.0,38394.0,0.27528335]
[1643728510912,0.05,38405.0,38396.0,0.29885609]
[1643728511115,0.195371,38420.0,38397.0,1.63642598]
[1643728511116,0.615386,38418.0,38397.0,1.63642598]
[1643728511313,0.05,38419.0,38399.0,1.382]
[1643728511512,0.05,38419.0,38400.0,0.26135501]
[1643728511513,0.0496869,38419.0,38400.0,0.26135501]
[1643728511812,0.0496869,38419.0,38401.0,0.00768465]
[1643728512012,0.17787944,38419.0,38410.0,0.28465481]
[1643728512213,0.17787944,38419.0,38410.0,0.33465481]
[1643728512415,0.17787944,38419.0,38410.0,0.28465481]
[1643728512711,0.17787944,38419.0,38413.0,0.00124371]
[1643728513112,0.09693561,38418.0,38413.0,0.00124371]
[1643728513345,0.22787944,38419.0,38413.0,0.00124371]
[1643728513346,0.0496869,38419.0,38413.0,0.00124371]
[1643728513548,0.03418,38426.0,38413.0,0.00124371]
[1643728513744,0.03418,38426.0,38411.0,0.33472854]
[1643728513745,0.001,38425.0,38410.0,0.58795639]
[1643728513946,0.001,38425.0,38414.0,0.00124366]
[1643728514246,0.001,38425.0,38422.0,0.14034505]
[1643728514644,0.14152598,38424.0,38421.0,0.05]
[1643728514845,0.09624544,38423.0,38415.0,0.05]
[1643728515048,0.349963,38422.0,38415.0,0.05]
[1643728515245,0.05,38421.0,38408.0,0.01918285]
[1643728515648,0.05,38421.0,38418.0,0.21308091]
[1643728516245,0.05,38421.0,38418.0,0.26308091]
[1643728516443,0.05,38421.0,38418.0,0.26432445]
[1643728516644,0.045,38421.0,38418.0,0.26432445]
[1643728517006,0.23619885,38424.0,38418.0,0.26432445]
[1643728517007,0.007696,38422.0,38418.0,0.26432445]
[1643728517200,0.007696,38422.0,38418.0,0.00124354]
[1643728517398,0.007696,38422.0,38404.0,0.41848306]
[1643728517601,0.007696,38422.0,38418.0,0.00124353]
[1643728517798,0.349963,38421.0,38418.0,0.00124353]
[1643728517998,0.530169,38421.0,38418.0,0.00124353]
[1643728518300,0.180206,38421.0,38418.0,0.00124353]
[1643728518500,0.180206,38421.0,38414.0,0.1917153]
[1643728518501,0.05,38421.0,38414.0,0.1917153]
[1643728518799,0.05,38421.0,38418.0,0.0006228]
[1643728519001,0.349963,38420.0,38418.0,0.0006228]
[1643728519199,0.15,38419.0,38402.0,0.7383]
[1643728519398,0.05,38414.0,38402.0,0.7383]
[1643728519799,0.14152598,38408.0,38403.0,0.25627465]
[1643728520001,0.07471515,38404.0,38401.0,0.15561106]
[1643728520202,0.12471515,38404.0,38401.0,0.15561106]
[1643728520400,0.05,38404.0,38401.0,0.15561106]
[1643728520600,0.05,38407.0,38401.0,0.15561106]
[1643728520848,0.05,38407.0,38402.0,0.02067064]
[1643728521051,0.113023,38406.0,38402.0,0.02067064]
[1643728521350,0.465099,38405.0,38402.0,0.02067064]
[1643728521549,0.0479,38404.0,38391.0,0.775]
[1643728521748,0.18040715,38402.0,38391.0,0.775]
[1643728522048,0.24553815,38402.0,38391.0,0.775]
[1643728522245,0.29553815,38402.0,38397.0,0.01989406]
[1643728523045,0.29553815,38402.0,38391.0,0.775]
[1643728523245,0.29553815,38402.0,38391.0,0.825]
[1643728523647,0.07814818,38398.0,38395.0,0.00124117]
[1643728524051,0.05,38398.0,38395.0,0.00124117]
[1643728524506,0.05,38402.0,38392.0,0.29366917]
[1643728524696,0.05,38402.0,38395.0,0.00124117]
[1643728525095,0.14152598,38398.0,38395.0,0.00124117]
[1643728525295,0.09847326,38397.0,38395.0,0.00124117]
[1643728525503,0.14152598,38398.0,38395.0,0.00124117]
[1643728525697,0.14152598,38398.0,38392.0,0.29366917]
[1643728526098,0.19152598,38398.0,38394.0,0.00124119]
[1643728526699,0.19152598,38398.0,38392.0,0.29356159]
[1643728526896,0.10155379,38395.0,38392.0,0.29356159]
[1643728527098,0.19152598,38398.0,38392.0,0.29356159]
[1643728527500,0.14152598,38398.0,38392.0,0.29356159]
[1643728527802,0.37565464,38414.0,38394.0,0.00621371]
[1643728527803,0.05,38413.0,38394.0,0.00621371]
[1643728528252,0.0832666,38407.0,38399.0,0.28521695]
[1643728528452,0.0832666,38407.0,38403.0,0.22002727]
[1643728528850,0.0832666,38407.0,38403.0,0.27002727]
[1643728529055,0.0832666,38407.0,38399.0,0.14296235]
[1643728529253,0.0832666,38407.0,38399.0,0.19296235]
[1643728529454,0.1332666,38407.0,38399.0,0.19296235]
[1643728530053,0.05,38413.0,38402.0,0.22648025]
[1643728530257,0.00146214,38416.0,38403.0,0.29873998]
[1643728530454,0.00146214,38416.0,38403.0,1.68679449]
[1643728530656,0.14373579,38422.0,38403.0,1.78746302]
[1643728530657,0.137888,38422.0,38403.0,1.78746302]
[1643728530852,0.00146229,38416.0,38403.0,1.78073998]
[1643728531052,0.00146229,38416.0,38412.0,0.27982973]
[1643728531254,0.09077203,38416.0,38413.0,0.13409402]
[1643728531454,0.00146229,38416.0,38413.0,0.13409402]
[1643728531854,0.137888,38422.0,38413.0,0.13409402]
[1643728532109,0.00146239,38416.0,38413.0,0.13409402]
[1643728532708,0.06155739,38420.0,38413.0,0.13409402]
[1643728532911,0.06155739,38420.0,38412.0,0.0479]
[1643728533109,0.06155739,38420.0,38411.0,0.28932038]
[1643728533411,0.06155739,38420.0,38411.0,0.33932038]
[1643728533808,0.06155739,38420.0,38409.0,0.23886262]
[1643728534009,0.05,38416.0,38408.0,0.0479]
[1643728534408,0.065107,38414.0,38411.0,0.01865285]
[1643728534609,0.07920686,38409.0,38406.0,0.14897344]
[1643728535007,0.12920686,38409.0,38406.0,0.14897344]
[1643728535409,0.05,38416.0,38406.0,0.14897344]
[1643728535612,0.05,38416.0,38406.0,0.19897344]
[1643728535853,0.05,38416.0,38415.0,0.11209062]
[1643728536254,0.05,38416.0,38413.0,0.2112495]
[1643728536454,0.14738251,38416.0,38409.0,0.0479]
[1643728537255,0.065102,38414.0,38405.0,0.00124195]
[1643728537853,0.065102,38414.0,38401.0,0.24343671]
[1643728538054,0.130214,38414.0,38405.0,0.00124195]
[1643728538258,0.30445292,38413.0,38405.0,0.00124195]
[1643728538457,0.06512,38408.0,38405.0,0.00124195]
[1643728538956,0.06512,38408.0,38397.0,0.09291738]
[1643728539156,0.09547187,38410.0,38397.0,0.09291738]
[1643728539157,0.09547187,38410.0,38405.0,0.00124196]
[1643728539355,0.05,38410.0,38405.0,0.00124196]
[1643728539806,0.18022,38414.0,38405.0,0.00124196]
[1643728540008,0.065108,38412.0,38405.0,0.00124196]
[1643728540204,0.065108,38412.0,38403.0,0.46560273]
[1643728540404,0.15290234,38412.0,38405.0,0.00124195]
[1643728540605,0.08779434,38412.0,38405.0,0.00124195]
[1643728540804,0.13779434,38412.0,38405.0,0.00124195]
[1643728541708,0.14537744,38406.0,38405.0,0.00124195]
[1643728541906,0.05,38406.0,38405.0,0.00124195]
[1643728542105,0.065114,38410.0,38405.0,0.00124195]
[1643728542604,0.115114,38410.0,38402.0,0.11595179]
[1643728542807,0.2623398,38409.0,38405.0,0.00124195]
[1643728543009,0.115118,38406.0,38405.0,0.00124195]
[1643728543254,0.515081,38406.0,38405.0,0.00124195]
[1643728543653,0.165118,38406.0,38405.0,0.00124195]
[1643728543860,0.10244671,38404.0,38400.0,0.15166348]
[1643728544060,0.10244671,38404.0,38398.0,0.00496871]
[1643728544854,0.10244671,38404.0,38400.0,0.02036845]
[1643728545257,0.05,38405.0,38400.0,0.02036845]
[1643728545653,0.05,38405.0,38401.0,0.29505923]
[1643728546054,0.05,38405.0,38401.0,0.34505923]
[1643728546255,0.05,38405.0,38400.0,0.02036845]
[1643728546458,0.13520402,38405.0,38401.0,0.00124207]
[1643728547312,0.13520402,38405.0,38396.0,0.21669128]
[1643728547505,0.13520402,38405.0,38396.0,0.26669128]
[1643728547705,0.13520402,38405.0,38401.0,0.00124207]
[1643728547911,0.13489064,38405.0,38401.0,0.00124207]
[1643728548705,0.13489064,38405.0,38396.0,0.26669128]
[1643728548907,0.04968662,38405.0,38401.0,0.00124207]
[1643728549113,0.04446877,38405.0,38401.0,0.00124207]
[1643728549907,0.04446877,38405.0,38402.0,0.12834893]
[1643728550108,0.12459645,38405.0,38402.0,0.12834893]
[1643728550307,0.04446877,38405.0,38402.0,0.36495189]
[1643728550508,0.04446877,38405.0,38402.0,0.41495189]
[1643728550749,0.13022777,38414.0,38402.0,0.41495189]
[1643728550750,0.065105,38410.0,38402.0,0.41495189]
[1643728551353,0.0886143,38408.0,38404.0,0.00124197]
[1643728551553,0.1302145,38415.0,38413.0,0.05]
[1643728551554,0.19533734,38415.0,38413.0,0.05]
[1643728551754,0.19533734,38415.0,38407.0,0.13023]
[1643728551755,0.75556812,38414.0,38407.0,0.13023]
[1643728552051,0.75556812,38414.0,38398.0,0.29566359]
[1643728552052,0.1,38411.0,38398.0,0.29566359]
[1643728552249,0.64611852,38410.0,38393.0,0.26046]
[1643728552454,0.0929302,38401.0,38393.0,0.26046]
[1643728552650,0.13025992,38400.0,38394.0,0.06513]
[1643728553050,0.13025992,38400.0,38399.0,0.130254]
[1643728553451,0.13025992,38400.0,38390.0,0.05]
[1643728553452,0.18598544,38400.0,38390.0,0.05]
[1643728553655,0.43424096,38400.0,38385.0,0.0011]
[1643728553857,0.1,38393.0,38385.0,0.0011]
[1643728554050,0.77643595,38392.0,38380.0,0.310551]
[1643728554258,0.14585358,38388.0,38380.0,0.216861]
[1643728554519,0.14585358,38388.0,38375.0,0.27274477]
[1643728554520,0.1,38385.0,38375.0,0.130339]
[1643728554713,0.48564011,38384.0,38376.0,0.5]
[1643728554916,0.11307097,38383.0,38382.0,0.00123647]
[1643728555110,0.11307097,38383.0,38382.0,0.60123647]
[1643728555111,0.46303397,38383.0,38382.0,0.60123647]
[1643728555315,0.16307097,38383.0,38382.0,0.60123647]
[1643728555510,0.11517097,38383.0,38382.0,0.00123647]
[1643728555909,0.11517097,38383.0,38381.0,0.26478998]
[1643728556210,0.11517097,38383.0,38382.0,0.23430618]
[1643728556411,0.06517097,38383.0,38382.0,0.23430618]
[1643728556817,1.39689632,38402.0,38384.0,0.065144]
[1643728557014,0.00554461,38399.0,38387.0,0.195392]
[1643728557212,0.42,38402.0,38388.0,0.24584788]